bitfinex-derivatives/quotes_SOLF0:USTF0_20250829
["timestamp","ask_amount","ask_price","bid_price","bid_amount"]
[1756430882295,2.38144511,212.8,212.66,7.55088418]
[1756430882600,9.99144511,212.79,212.66,7.52]
[1756430882903,2.38144511,212.78,212.71,0.03273294]
[1756430883204,7.61,212.79,212.71,0.03273294]
[1756430886098,4.2294,212.78,212.71,0.03273294]
[1756430886304,7.81,212.77,212.71,0.03273294]
[1756430886901,7.81,212.77,212.65,7.1]
[1756430886902,7.81,212.73,212.59,5.2493128]
[1756430887108,7.81,212.67,212.55,7.1]
[1756430888198,0.03375793,212.63,212.55,7.1]
[1756430888602,7.84375793,212.63,212.55,7.1]
[1756430888807,7.84375793,212.63,212.51,315.74]
[1756430889004,7.84375793,212.63,212.5,7.1]
[1756430889204,12.07635793,212.63,212.5,7.1]
[1756430889406,12.0426,212.63,212.5,7.1]
[1756430889606,7.81,212.63,212.5,7.1]
[1756430889804,0.03458676,212.59,212.5,7.1]
[1756430891410,0.03458676,212.59,212.53,7.1]
[1756430894707,8.676e-05,212.59,212.57,4.2334]
[1756430895014,8.676e-05,212.59,212.58,7.1]
[1756430899013,7.81,212.69,212.6,65.8467]
[1756430899315,7.81,212.69,212.59,65.8471]
[1756430899523,4.05600406,212.69,212.6,4.2329]
[1756430899818,7.81,212.68,212.6,4.2329]
[1756430900309,7.81,212.68,212.62,0.03219654]
[1756430900511,7.81,212.64,212.62,0.03219654]
[1756430900714,4.05600406,212.69,212.62,0.03219654]
[1756430900918,7.81,212.68,212.62,0.03219654]
[1756430901111,4.2318,212.66,212.62,0.03219654]
[1756430901713,8.28820406,212.65,212.62,0.03219654]
[1756430901913,0.48,212.64,212.5,5.2493128]
[1756430902118,7.81,212.64,212.5,7.1]
[1756430903321,7.81,212.58,212.54,4.2341]
[1756430903523,0.03038062,212.59,212.54,4.2341]
[1756430903716,7.81,212.58,212.54,4.2341]
[1756430904720,0.03038062,212.59,212.54,4.2341]
[1756430905111,7.81,212.58,212.54,4.2341]
[1756430905320,7.81,212.58,212.55,4.2338]
[1756430905521,0.03038062,212.59,212.53,72.9671]
[1756430906724,0.03038062,212.59,212.56,4.2336]
[1756430907224,0.03038062,212.59,212.53,72.9671]
[1756430907726,0.03038062,212.59,212.57,4.2334]
[1756430908225,8.062e-05,212.59,212.58,7.1]
[1756430911122,323.79,212.71,212.58,7.1]
[1756430911922,328.0209,212.71,212.58,7.1]
[1756430912124,12.0409,212.71,212.58,7.1]
[1756430912826,7.81,212.71,212.62,0.0299117]
[1756430913627,12.0409,212.71,212.62,0.0299117]
[1756430913827,7.81,212.71,212.62,0.0299117]
[1756430915530,12.0409,212.71,212.62,0.0299117]
[1756430916128,4.2311,212.7,212.62,0.0299117]
[1756430917227,7.68,212.66,212.62,0.0299117]
[1756430917730,4.2323,212.64,212.62,0.0299117]
[1756430917927,7.68,212.63,212.62,0.0299117]
[1756430919328,4.05600406,212.71,212.62,0.0299117]
[1756430919530,7.68,212.7,212.62,0.0299117]
[1756430920035,4.2312,212.69,212.62,0.0299117]
[1756430921438,7.68,212.7,212.62,0.0299117]
[1756430921829,7.68,212.7,212.63,4.2322]
[1756430922032,7.68,212.7,212.62,0.0299117]
[1756430922928,7.68,212.74,212.63,65.8371]
[1756430923134,2.37652778,212.73,212.64,7.29]
[1756430923437,7.68,212.74,212.64,7.29]
[1756430923639,11.73600406,212.74,212.64,7.29]
[1756430923833,2.37722346,212.73,212.6,7.29]
[1756430924030,4.05600406,212.74,212.6,7.29]
[1756430924031,10.05752679,212.72,212.6,7.29]
[1756430924234,7.68,212.72,212.64,0.03026449]
[1756430924934,4.2311,212.7,212.64,4.26236449]
[1756430925233,7.68,212.72,212.64,4.26236449]
[1756430925638,7.68,212.72,212.65,4.2318]
[1756430925840,11.9106,212.72,212.64,7.32026449]
[1756430926035,7.68,212.72,212.64,7.32026449]
[1756430926429,7.68,212.72,212.64,0.03026449]
[1756430927036,4.2309,212.71,212.64,4.26236449]
[1756430927341,7.68,212.72,212.64,4.26236449]
[1756430927542,2.37832305,212.71,212.64,4.26236449]
[1756430927732,7.68,212.72,212.64,0.03026449]
[1756430927932,4.05600406,212.69,212.64,0.03026449]
[1756430928137,10.05818548,212.68,212.64,0.03026449]
[1756430928438,7.68,212.65,212.55,7.29]
[1756430928840,11.9121,212.65,212.59,4.233]
[1756430930045,0.03004973,212.64,212.59,65.8489]
[1756430930251,0.03004973,212.64,212.58,7.29]
[1756430930745,0.03004973,212.64,212.61,4.2326]
[1756430933244,7.71004973,212.64,212.59,4.2331]
[1756430933446,7.68,212.63,212.58,7.29]
[1756430934245,7.71004973,212.64,212.54,7.29]
[1756430934644,4.2327,212.62,212.56,4.2336]
[1756430935250,4.2327,212.62,212.54,11.5241]
[1756430935456,4.2327,212.62,212.54,7.29]
[1756430935945,11.9129,212.61,212.55,4.2338]
[1756430937848,4.2331,212.6,212.5,7.29]
[1756430938656,4.2331,212.6,212.54,4.234]
[1756430938851,0.0308679,212.57,212.54,11.524]
[1756430939156,0.0308679,212.57,212.48,7.29]
[1756430939454,0.0308679,212.57,212.48,73.1729]
[1756430939856,7.7108679,212.57,212.52,4.2344]
[1756430940446,7.7108679,212.57,212.52,11.5244]
[1756430941346,0.0308679,212.57,212.52,11.5244]
[1756430941548,7.68,212.56,212.52,11.5244]
[1756430941747,0.0308679,212.57,212.5,4.2349]
[1756430941954,7.68,212.54,212.44,5.2493128]
[1756430942154,7.68,212.54,212.43,7.29]
[1756430943056,0.0319429,212.51,212.48,7.29]
[1756430943958,0.0319429,212.51,212.5,11.5248]
[1756430945359,0.0319429,212.51,212.5,7.29]
[1756430945564,0.0319429,212.51,212.48,7.29]
[1756430945862,0.0319429,212.51,212.43,5.2493128]
[1756430945863,2.6381869,212.49,212.39,12.5393128]
[1756430946162,2.6381869,212.46,212.39,12.5393128]
[1756430946464,2.6381869,212.46,212.39,7.29]
[1756430946664,0.03120111,212.45,212.39,7.29]
[1756430947166,0.03120111,212.45,212.41,7.41]
[1756430947764,0.03120111,212.45,212.4,5.2493128]
[1756430948462,0.03120111,212.45,212.41,7.41]
[1756430948662,0.03120111,212.45,212.4,5.2493128]
[1756430949158,0.03120111,212.45,212.35,5.2493128]
[1756430949359,0.03120111,212.45,212.39,7.41]
[1756430953169,0.03120111,212.45,212.39,131.13]
[1756430953361,0.03120111,212.45,212.4,65.9082]
[1756430953661,0.03120111,212.45,212.44,7.41]
[1756430957173,1.11e-06,212.45,212.44,7.41]
[1756430958568,1.11e-06,212.45,212.43,4.2362]
[1756430958768,1.11e-06,212.45,212.42,0.03146243]
[1756430958963,7.57000111,212.45,212.42,0.03146243]
[1756430959671,1.11e-06,212.45,212.42,0.03146243]
[1756430960670,1.11e-06,212.45,212.42,7.44146243]
[1756430961872,1.11e-06,212.45,212.43,4.2362]
[1756430964069,1.11e-06,212.45,212.42,0.03146243]
[1756430964973,1.11e-06,212.45,212.42,4.26786243]
[1756430965565,1.11e-06,212.45,212.43,4.2362]
[1756430966475,1.11e-06,212.45,212.44,7.41]
[1756430967771,7.57,212.57,212.48,73.2922]
[1756430968074,7.57,212.57,212.48,7.41]
[1756430969079,7.57,212.57,212.5,0.03100273]
[1756430969680,7.57,212.57,212.5,4.26590273]
[1756430970678,7.57,212.57,212.51,4.2346]
[1756430971382,7.57,212.61,212.52,11.6444]
[1756430971578,7.57,212.61,212.52,7.41]
[1756430971876,7.57,212.61,212.54,4.234]
[1756430972182,7.57,212.61,212.54,4.26756462]
[1756430981686,7.57,212.61,212.55,4.2338]
[1756430985085,7.57,212.61,212.54,0.03356462]
[1756430985384,7.57,212.61,212.55,7.31]
[1756430985781,2.63676712,212.65,212.55,7.31]
[1756430985989,7.44,212.64,212.55,7.31]
[1756430986586,7.44,212.64,212.57,0.03386451]
[1756430987087,7.44,212.64,212.57,4.26736451]
[1756430987288,7.44,212.64,212.57,7.34386451]
[1756430988190,7.44,212.64,212.61,4.2326]
[1756430988988,7.44,212.68,212.62,4.2324]
[1756430989186,7.44,212.68,212.59,7.31]
[1756430989384,7.44,212.68,212.63,4.2322]
[1756430989579,2.63676712,212.69,212.59,7.31]
[1756430989580,7.44,212.7,212.59,73.1593]
[1756430989781,7.44,212.7,212.61,0.03333996]
[1756430990489,2.63676712,212.71,212.65,4.2318]
[1756430990789,10.07676712,212.71,212.65,4.2318]
[1756430991285,7.44,212.7,212.66,0.03350779]
[1756430991484,2.63676712,212.71,212.66,0.03350779]
[1756430991688,7.44,212.7,212.66,0.03350779]
[1756430992392,7.44,212.7,212.66,7.34350779]
[1756430992583,105.58983484,212.75,212.66,0.03350779]
[1756430992787,7.44,212.7,212.66,0.03350779]
[1756430993492,4.2309,212.71,212.66,0.03350779]
[1756430993789,7.44,212.7,212.66,0.03350779]
[1756430993990,2.63676712,212.7,212.66,0.03350779]
[1756430994391,7.44,212.69,212.66,0.03350779]
[1756430994592,2.63676712,212.7,212.66,0.03350779]
[1756430994993,4.2315,212.68,212.66,0.03350779]
[1756430995197,7.44,212.67,212.66,0.03350779]
[1756430999095,7.44,212.7,212.66,7.34350779]
[1756430999293,2.63676712,212.73,212.66,0.03350779]
[1756430999294,7.44,212.72,212.66,0.03350779]
[1756431000390,4.2309,212.71,212.66,0.03350779]
[1756431000591,105.58983484,212.75,212.66,0.03350779]
[1756431000592,7.44,212.75,212.67,7.31]
[1756431000800,10.07676712,212.79,212.68,7.31]
[1756431001097,7.44,212.79,212.7,7.31]
[1756431001298,10.07676712,212.79,212.7,7.31]
[1756431001700,4.2299,212.76,212.72,0.03316344]
[1756431002002,7.44,212.75,212.72,0.03316344]
[1756431002298,2.63676712,212.76,212.72,0.03316344]
[1756431002499,7.44,212.75,212.72,0.03316344]
[1756431003092,2.63676712,212.76,212.72,0.03316344]
[1756431003299,4.2303,212.74,212.72,0.03316344]
[1756431003603,7.44,212.73,212.72,0.03316344]
[1756431004599,7.44,212.76,212.72,0.03316344]
[1756431004900,2.63676712,212.77,212.72,0.03316344]
[1756431005098,2.63676712,212.74,212.72,0.03316344]
[1756431005400,7.44,212.73,212.72,0.03316344]
[1756431005996,11.6698,212.76,212.72,0.03316344]
[1756431006301,7.44,212.76,212.72,7.82316344]
[1756431006501,4.2299,212.76,212.72,0.03316344]
[1756431006697,7.85,212.75,212.72,0.03316344]
[1756431007296,7.85,212.76,212.72,0.03316344]
[1756431007701,2.63676712,212.77,212.72,7.82316344]
[1756431008196,6.86646712,212.77,212.72,0.03316344]
[1756431008701,7.85,212.76,212.72,0.03316344]
[1756431009204,2.63676712,212.83,212.72,7.82316344]
[1756431010002,4.2284,212.83,212.73,7.79]
[1756431010203,7.85,212.84,212.74,65.8029]
[1756431010504,7.85,212.84,212.78,4.2292]
[1756431010803,105.89998087,212.87,212.77,7.79]
[1756431011099,103.26321375,212.87,212.83,4.2283]
[1756431011299,103.26321375,212.87,212.8,7.79]
[1756431012205,12.0774,212.88,212.8,7.79]
[1756431012506,7.85,212.88,212.8,7.79]
[1756431013005,7.85,212.88,212.8,12.019]
[1756431013401,7.85,212.92,212.81,7.79]
[1756431013599,7.85,212.97,212.83,7.79]
[1756431013800,2.63676712,212.96,212.83,7.79]
[1756431014006,7.85,212.97,212.83,10.42676712]
[1756431014208,7.85,212.97,212.88,0.03018903]
[1756431014809,7.85,213.01,212.9,7.79]
[1756431016010,7.85,213.01,212.93,0.03360603]
[1756431017313,12.0748,213.01,212.93,0.03360603]
[1756431017806,7.85,213.01,212.93,0.03360603]
[1756431019107,4.225,213.0,212.93,0.03360603]
[1756431019415,7.85,213.01,212.93,0.03360603]
[1756431019711,4.04183884,213.03,212.93,0.03360603]
[1756431019901,4.04183884,212.99,212.93,0.03360603]
[1756431020106,11.89183884,212.99,212.93,0.03360603]
[1756431020309,12.0753,212.99,212.93,0.03360603]
[1756431021911,7.85,212.99,212.93,0.03360603]
[1756431027807,4.2254,212.98,212.93,0.03360603]
[1756431028011,7.85,212.97,212.93,0.03360603]
[1756431028212,4.2254,212.98,212.93,0.03360603]
[1756431028817,12.075,213.01,212.93,0.03360603]
[1756431029618,7.85,212.99,212.93,0.03360603]
[1756431030017,12.0754,212.99,212.93,0.03360603]
[1756431030419,7.85,212.99,212.93,0.03360603]
[1756431030717,65.715,213.03,212.82,7.79]
[1756431030718,7.85,212.93,212.82,7.79]
[1756431031317,7.85,212.93,212.75,105.32]
[1756431031318,7.85,212.89,212.7,7.79]
[1756431031523,7.85,212.89,212.71,87.08]
[1756431031818,7.85,212.89,212.69,315.58]
[1756431031819,7.85,212.85,212.72,7.79]
[1756431032024,0.03031149,212.82,212.72,7.79]
[1756431034521,0.03031149,212.82,212.75,7.79]
[1756431034723,7.85,212.94,212.79,7.79]
[1756431034922,7.85,212.94,212.8,7.79]
[1756431035426,12.0764,212.94,212.8,7.79]
[1756431035824,7.85,212.94,212.8,7.79]
[1756431036327,7.85,212.94,212.85,0.03076814]
[1756431038232,7.85,212.94,212.86,65.7654]
[1756431038531,7.85,212.94,212.85,0.03076814]
[1756431039336,7.85,212.94,212.86,65.7647]
[1756431039539,102.61972332,213.08,212.88,65.7585]
[1756431039837,7.36,213.06,212.94,7.34]
[1756431040037,4.04183884,213.07,212.9,129.82]
[1756431040238,7.36,213.06,212.98,0.03010663]
[1756431040439,11.584,213.06,212.98,0.03010663]
[1756431041229,4.2242,213.05,212.98,0.03010663]
[1756431041435,7.36,213.04,212.98,0.03010663]
[1756431042831,4.2244,213.03,212.98,0.03010663]
[1756431043038,7.36,213.02,212.98,0.03010663]
[1756431043835,4.2244,213.03,212.98,0.03010663]
[1756431044234,4.2248,213.01,212.98,0.03010663]
[1756431044431,77.11583884,213.03,212.98,0.03010663]
[1756431044635,65.7168,213.02,212.98,0.03010663]
[1756431044835,7.36,212.99,212.98,0.03010663]
[1756431045134,11.40183884,212.99,212.85,7.34]
[1756431045841,4.2256,212.98,212.86,65.7658]
[1756431046338,0.03104498,212.94,212.86,65.7658]
[1756431046536,0.03104498,212.94,212.89,4.2272]
[1756431046941,7.39104498,212.94,212.89,4.2272]
[1756431047242,7.39104498,212.94,212.87,4.2274]
[1756431047534,4.25724498,212.94,212.85,7.34]
[1756431047743,11.61724498,212.94,212.85,7.34]
[1756431047938,7.39104498,212.94,212.79,4.04183884]
[1756431048144,7.39104498,212.94,212.78,105.48]
[1756431048443,7.36,212.94,212.79,7.34]
[1756431048742,0.03036629,212.88,212.79,7.34]
[1756431050231,0.03036629,212.88,212.79,11.38183884]
[1756431050438,0.03036629,212.88,212.79,4.04183884]
[1756431050740,0.03036629,212.88,212.8,7.34]
[1756431052536,4.04183884,213.04,212.84,7.34]
[1756431052843,9.74519039,213.03,212.88,7.34]
[1756431053044,2.38519039,213.02,212.88,7.34]
[1756431053946,7.36,213.1,212.94,7.34]
[1756431054243,7.36,213.08,212.94,15.02]
[1756431054438,6.61196899,213.07,212.94,15.02]
[1756431054644,7.36,213.08,212.94,15.02]
[1756431054844,7.36,213.14,213.0,7.34]
[1756431055044,2.38943509,213.13,213.0,7.34]
[1756431055244,2.38943509,213.12,213.0,7.34]
[1756431055443,7.36,213.14,213.0,7.34]
[1756431055644,2.38668714,213.13,213.0,7.34]
[1756431055842,2.38668714,213.12,213.0,7.34]
[1756431056046,7.36,213.14,213.0,7.34]
[1756431056348,2.38616241,213.13,213.05,4.2239]
[1756431056542,2.38616241,213.12,213.05,4.2239]
[1756431056743,7.36,213.14,213.05,4.2239]
[1756431057048,2.3846569,213.13,213.05,4.2239]
[1756431057247,7.36,213.14,213.05,4.2239]
[1756431057444,2.38402018,213.13,213.05,4.2239]
[1756431057644,7.36,213.14,213.05,4.2239]
[1756431057948,2.38402356,213.13,213.05,4.2239]
[1756431058144,7.36,213.14,213.07,4.2236]
[1756431058547,7.36,213.14,213.07,0.03017912]
[1756431060747,7.36,213.2,213.07,7.37017912]
[1756431060951,320.72751108,213.24,213.11,7.34]
[1756431060952,5.16751108,213.24,213.11,7.34]
[1756431061151,2.38159007,213.23,213.11,7.34]
[1756431061349,11.58,213.25,213.12,4.2226]
[1756431061549,2.38115673,213.24,213.15,0.03476631]
[1756431061745,2.38115673,213.23,213.15,0.03476631]
[1756431061948,7.36,213.22,213.15,0.03476631]
[1756431063054,11.5807,213.22,213.15,0.03476631]
[1756431063355,7.36,213.22,213.15,0.03476631]
[1756431063749,4.221,213.2,213.15,0.03476631]
[1756431064047,7.36,213.19,213.15,0.03476631]
[1756431064246,7.36,213.18,213.15,0.03476631]
[1756431064450,4.04183884,213.19,213.15,0.03476631]
[1756431064650,4.2218,213.16,213.15,0.03476631]
[1756431064849,11.5818,213.16,213.15,0.03476631]
[1756431065050,7.82,213.16,213.04,7.34]
[1756431065249,7.36,213.16,213.04,7.34]
[1756431065549,7.36,213.12,213.04,7.34]
[1756431065955,7.36,213.12,212.96,7.34]
[1756431066153,4.04183884,213.11,212.96,7.34]
[1756431066447,0.03593281,213.06,212.96,7.34]
[1756431066954,0.03593281,213.06,212.94,87.14]
[1756431066955,0.03593281,213.06,213.01,4.04183884]
[1756431067150,7.77,213.17,213.02,7.51]
[1756431068847,7.77,213.17,213.07,0.03149686]
[1756431069350,315.36,213.21,213.07,0.03149686]
[1756431069549,14.12,213.27,213.07,0.03149686]
[1756431069550,7.77,213.23,213.08,7.51]
[1756431071049,7.77,213.23,213.13,0.02980308]
[1756431072253,7.77,213.23,213.16,4.2218]
[1756431072654,7.77,213.23,213.17,4.2214]
[1756431073053,11.81183884,213.28,213.17,0.03075822]
[1756431073552,11.81183884,213.28,213.18,4.2212]
[1756431073854,7.77,213.32,213.19,7.51]
[1756431074061,7.77,213.28,213.19,7.51]
[1756431074257,136.5902,213.37,213.17,4.25235822]
[1756431074258,7.77,213.47,213.33,65.6204]
[1756431074561,4.04183884,213.46,213.29,7.51]
[1756431074860,7.77,213.45,213.38,0.0346105]
[1756431075059,4.04183884,213.48,213.38,0.0346105]
[1756431075252,7.77,213.46,213.38,0.0346105]
[1756431075457,7.77,213.44,213.29,7.51]
[1756431075659,131.95,213.44,213.29,7.51]
[1756431075857,7.77,213.39,213.29,7.51]
[1756431077960,7.77,213.39,213.25,4.04183884]
[1756431078557,7.77,213.39,213.24,7.51]
[1756431078757,0.03555044,213.34,213.24,7.51]
[1756431079863,0.03555044,213.34,213.15,136.54232964]
[1756431079864,7.77,213.33,213.18,7.51]
[1756431080557,0.03045713,213.28,213.18,7.51]
[1756431081762,0.03045713,213.28,213.14,4.2221]
[1756431081763,7.77,213.27,213.14,4.2221]
[1756431082060,4.2199,213.26,213.15,7.51]
[1756431082465,0.03027956,213.23,213.15,7.51]
[1756431083654,0.03027956,213.23,213.16,4.2218]
[1756431084060,0.03027956,213.23,213.17,7.51]
[1756431084264,0.03027956,213.23,213.21,7.51]
[1756431084965,0.03027956,213.23,213.17,4.2215]
[1756431085159,0.03027956,213.23,213.18,7.51]
[1756431085660,0.03027956,213.23,213.17,65.6694]
[1756431085863,0.03027956,213.23,213.22,7.51]
[1756431088465,110.75895588,213.37,213.27,7.51]
[1756431088966,7.77,213.37,213.28,4.2193]
[1756431089366,7.77,213.43,213.31,73.1368]
[1756431089561,11.9865,213.43,213.31,7.51]
[1756431090465,11.9865,213.43,213.23,65.6503]
[1756431090466,65.6001,213.4,213.24,7.51]
[1756431090769,7.77,213.38,213.24,7.51]
[1756431091667,4.2181,213.35,213.24,11.7302]
[1756431092260,7.77,213.38,213.24,11.7302]
[1756431092466,11.9876,213.38,213.24,7.51]
[1756431093358,7.77,213.38,213.24,73.1574]
[1756431093558,7.77,213.38,213.24,7.51]
[1756431093960,7.77,213.38,213.24,73.1574]
[1756431094367,11.81183884,213.48,213.32,65.6233]
[1756431094860,4.04183884,213.48,213.32,65.6233]
[1756431095056,4.04183884,213.48,213.33,4.2183]
[1756431095057,4.2163,213.44,213.33,4.2183]
[1756431095261,4.2163,213.44,213.3,11.55183884]
[1756431095262,7.77,213.43,213.3,7.51]
[1756431095960,7.77,213.43,213.31,65.6266]
[1756431096267,7.77,213.43,213.3,73.1397]
[1756431096268,7.77,213.43,213.35,4.218]
[1756431096470,7.77,213.43,213.31,65.6266]
[1756431096864,7.77,213.43,213.3,73.1393]
[1756431097366,7.77,213.43,213.34,4.2181]
[1756431097564,7.77,213.43,213.3,7.51]
[1756431097763,4.2167,213.42,213.3,7.51]
[1756431098161,7.77,213.43,213.31,65.6266]
[1756431098862,7.77,213.43,213.3,73.1395]
[1756431099062,7.77,213.43,213.31,65.6264]
[1756431099362,7.77,213.43,213.32,65.6236]
[1756431099565,123.66,213.49,213.35,7.21]
[1756431099765,2.37297574,213.48,213.35,7.21]
[1756431099965,123.41,213.49,213.35,7.21]
[1756431100166,2.37362031,213.48,213.35,7.21]
[1756431100468,4.2155,213.48,213.35,7.21]
[1756431101266,4.2158,213.47,213.36,4.2177]
[1756431101565,12.0258,213.47,213.36,4.2177]
[1756431101872,4.2164,213.44,213.35,7.21]
[1756431102566,4.2164,213.44,213.35,11.4279]
[1756431103472,7.81,213.47,213.35,7.21]
[1756431103773,2.37152549,213.46,213.35,7.21]
[1756431103973,7.81,213.47,213.35,7.21]
[1756431104173,2.37261837,213.46,213.35,7.21]
[1756431104375,12.0259,213.47,213.36,4.2178]
[1756431104575,2.37297148,213.46,213.36,4.2178]
[1756431104771,7.81,213.47,213.36,4.2178]
[1756431104981,6.58887593,213.46,213.37,4.2175]
[1756431105175,4.216,213.46,213.37,4.2175]
[1756431105375,4.216,213.46,213.38,4.2173]
[1756431105572,193.18823884,213.51,213.37,7.21]
[1756431105573,11.85183884,213.51,213.37,7.21]
[1756431105771,2.37265022,213.5,213.42,65.5925]
[1756431106072,7.81,213.57,213.43,7.21]
[1756431106277,4.2145,213.54,213.43,7.21]
[1756431106476,7.81,213.57,213.45,7.21]
[1756431106671,7.81,213.57,213.48,4.2155]
[1756431107271,7.81,213.57,213.46,4.2159]
[1756431107572,11.85183884,213.55,213.45,7.21]
[1756431107880,80.47082192,213.61,213.45,7.21]
[1756431107881,7.81,213.68,213.56,4.2138]
[1756431108075,7.81,213.68,213.58,7.21]
[1756431108477,7.81,213.74,213.58,7.21]
[1756431108874,7.81,213.74,213.58,72.7536]
[1756431109074,7.81,213.74,213.61,4.2129]
[1756431110881,7.81,213.74,213.63,4.2125]
[1756431111478,7.81,213.74,213.62,7.21]
[1756431112075,0.03086454,213.7,213.66,0.03221719]
[1756431113880,0.03086454,213.7,213.66,7.24221719]
[1756431114081,0.03086454,213.7,213.68,4.2115]
[1756431114379,0.03086454,213.7,213.67,7.21]
[1756431114579,0.03086454,213.7,213.66,0.03221719]
[1756431115178,0.03086454,213.7,213.66,7.24221719]
[1756431115384,0.03086454,213.7,213.67,7.21]
[1756431116879,0.03086454,213.7,213.68,7.21]
[1756431117477,0.03086454,213.7,213.67,65.5164]
[1756431117682,0.03086454,213.7,213.68,7.21]
[1756431117881,0.03086454,213.7,213.67,65.5164]
[1756431118282,0.03086454,213.7,213.69,11.4213]
[1756431118786,0.03086454,213.7,213.66,7.24221719]
[1756431119083,0.03086454,213.7,213.66,0.03221719]
[1756431119585,0.03086454,213.7,213.66,11.45401719]
[1756431120584,0.03086454,213.7,213.68,4.2115]
[1756431120885,7.81,213.83,213.71,65.5032]
[1756431121289,7.81,213.83,213.73,4.2105]
[1756431121585,7.81,213.83,213.71,65.5025]
[1756431121779,7.81,213.83,213.7,65.5072]
[1756431122189,7.81,213.83,213.74,0.03222342]
[1756431122389,103.34276583,213.84,213.75,7.21]
[1756431123392,103.34276583,213.84,213.76,4.2099]
[1756431124286,103.34276583,213.84,213.76,65.4877]
[1756431124487,314.9,213.86,213.77,65.4845]
[1756431124682,314.9,213.86,213.75,7.21]
[1756431124884,314.9,213.86,213.76,65.4884]
[1756431125085,314.9,213.86,213.77,65.4855]
[1756431125291,314.9,213.86,213.78,0.0338698]
[1756431126086,7.81,213.85,213.78,0.0338698]
[1756431126287,12.0182,213.85,213.78,0.0338698]
[1756431127090,7.81,213.85,213.78,0.0338698]
[1756431127893,11.85183884,213.85,213.78,0.0338698]
[1756431128094,7.81,213.85,213.78,0.0338698]
[1756431129099,7.37,213.91,213.79,65.4788]
[1756431129397,7.37,213.91,213.8,65.4758]
[1756431129598,7.37,213.91,213.82,65.4704]
[1756431129898,7.37,213.92,213.83,0.0311349]
[1756431131199,11.577,213.92,213.83,0.0311349]
[1756431131401,132.89,213.92,213.83,0.0311349]
[1756431132701,132.89,213.92,213.71,7.69]
[1756431132702,4.04183884,213.86,213.71,7.69]
[1756431132999,125.48,213.88,213.71,11.73183884]
[1756431133201,125.48,213.88,213.73,7.69]
[1756431133393,4.2082,213.86,213.73,7.69]
[1756431133593,125.48,213.88,213.73,7.69]
[1756431133790,4.04183884,213.85,213.73,7.69]
[1756431134092,7.37,213.84,213.68,7.69]
[1756431134294,7.37,213.84,213.69,65.51]
[1756431134494,7.37,213.84,213.7,7.69]
[1756431134803,4.2088,213.83,213.73,4.2105]
[1756431135002,7.37,213.84,213.7,7.69]
[1756431135301,7.37,213.84,213.7,11.901]
[1756431135302,4.2092,213.8,213.7,11.901]
[1756431135498,7.37,213.84,213.7,7.69]
[1756431135895,7.37,213.9,213.76,65.489]
[1756431136200,7.37,213.9,213.78,65.4825]
[1756431136398,7.37,213.9,213.77,7.69]
[1756431136601,4.04183884,213.85,213.71,7.69]
[1756431136902,111.02183884,213.85,213.71,7.69]
[1756431137796,4.04183884,213.89,213.71,7.69]
[1756431138010,7.37,213.88,213.71,7.69]
[1756431139206,44.89,213.88,213.71,7.69]
[1756431139601,7.37,213.84,213.71,7.69]
[1756431140603,4.04183884,213.85,213.71,7.69]
[1756431140604,4.04183884,213.89,213.71,7.69]
[1756431140801,7.37,213.9,213.71,7.69]
[1756431141002,7.37,213.9,213.74,4.04183884]